Cogmind - Beta 13 @@@ ROGUE MODE // 2024.04.02 @ 18:20:13 Player: Origaki Result: Destroyed by G-34 Mercenary with Small Laser Performance ------------- Evolutions (1) 500 Regions Visited (3) 600 Robots Destroyed (16) 80 Value Destroyed (511) 511 Prototype IDs (0) 0 Alien Tech Used (0) 0 Bonus (0) 0 TOTAL SCORE: 1691 Bonus ------- None Cogmind --------- Core Integrity 0/400 Matter 300/300 Energy 100/100 System Corruption 0% Temperature Cool (6) Movement Core (200) Ox3 Location -9/Materials Parts ------- > --- POWER (1) -------- (None) > --- PROPULSION (4) --- (None) > --- UTILITY (2) ------ Medium Storage Unit > --- WEAPON (2) ------- (None) > --- INVENTORY (10) --- Heat Sink Experimental Sensor Array ECM Suite Utility Shielding Peak State ------------ > --- POWER ------------ Backup Power I > --- PROPULSION ------- Aluminum Leg Aluminum Leg > --- UTILITY ---------- Improved Heat Sink Targeting Computer > --- WEAPON ----------- Medium Laser Small Laser > --- INVENTORY -------- Aluminum Leg Heat Sink Grenade Launcher [Rating: 9] Favorites ----------- Power Light Ion Engine Engine Light Ion Engine Propulsion Aluminum Leg Leg Aluminum Leg Utility Targeting Computer Device Improved Heat Sink Storage Medium Storage Unit Processor Targeting Computer Protection Light Armor Plating Weapon Medium Laser Energy Gun Medium Laser Launcher Grenade Launcher Build | -11 -10 -10 -9 ------- Run | Yrd Mat Min Mat Slots Evolved 2 | . . . 2 Power . | . . . . Propulsion 2 | . . . 2 Utility . | . . . . Weapon . | . . . . Parts Attached 19 | 5 11 . 3 Power 3 | 1 1 . 1 Engine 3 | 1 1 . 1 Core . | . . . . Reactor . | . . . . Propulsion 6 | 2 2 . 2 Treads . | . . . . Leg 6 | 2 2 . 2 Wheel . | . . . . Hover . | . . . . Flight . | . . . . Utility 4 | . 4 . . Device 1 | . 1 . . Storage 1 | . 1 . . Processor 1 | . 1 . . Hackware . | . . . . Protection 1 | . 1 . . Artifact . | . . . . Weapon 6 | 2 4 . . Energy Gun 4 | 2 2 . . Energy Cannon . | . . . . Ballistic Gun . | . . . . Ballistic Cannon . | . . . . Launcher 2 | . 2 . . Special Weapon . | . . . . Impact Weapon . | . . . . Slashing Weapon . | . . . . Piercing Weapon . | . . . . Special Melee Weapon . | . . . . Unidentified Prototypes . | . . . . Parts Lost 14 | . 6 2 6 Power 3 | . 2 . 1 Propulsion 6 | . 2 . 4 Utility 2 | . 1 . 1 Weapon 3 | . 1 2 . Highest Loss Streak 4 | . 3 2 4 To Critical Strikes . | . . . . Average Slot Usage (%) 84 | . 90 81 52 Engine 8 | . 11 . 5 Leg 27 | . 28 28 24 Device 4 | . 6 . . Storage 4 | . 1 14 11 Processor 10 | . 9 14 11 Protection 3 | . 4 . . Energy Gun 23 | . 27 24 . Naked Turns . | . . . . Heaviest Build 18 | 6 18 13 11 Greatest Support 40 | 20 20 20 40 Greatest Overweight (x) 3 | . . . 3 Average Overweight (x) . | . . . . Largest Inventory Capacity 10 | 5 10 10 10 Average Capacity 6 | 5 5 10 10 Most Carried 6 | . 5 6 5 Average Carried 3 | . 3 5 3 Final Capacity 10 | 5 10 10 10 Final Carried 6 | . 5 6 4 Class Distribution -------------------- 100% | Mutant Dominant Class ---------------- Mutant | -10/Materials Mutant | -10/Mines Mutant | -9/Materials Resources | -11 -10 -10 -9 ----------- Run | Yrd Mat Min Mat Matter Collected 410 | 250 150 10 . Remotely . | . . . . Salvage Created 501 | 40 414 47 . Parts 18 | . 16 2 . Haulers Intercepted . | . . . . Recyclers Shooed 1 | . 1 . . Parts Field Recycled . | . . . . Retrieved Matter . | . . . . Parts Self-Destructed . | . . . . Prevented . | . . . . Kills | -11 -10 -10 -9 ------- Run | Yrd Mat Min Mat Combat Hostiles Destroyed 16 | 1 14 1 . Guns 9 | 1 8 . . AOE 6 | . 6 . . Classes Destroyed 2 | 1 1 . . Swarmer 3 | . 3 . . Grunt 13 | 1 11 1 . Best Kill Streak 4 | 1 4 1 . Combat Bots Only 4 | 1 4 1 . Max Kills in Single Turn 2 | 1 2 1 . Gunslinging . | . . . . Exploded 2 | . 2 . . Melee . | . . . . Uniques/NPCs Destroyed . | . . . . Combat | -11 -10 -10 -9 -------- Run | Yrd Mat Min Mat Hostile Shots Fired 208 | 6 89 14 99 Missed 77 | 2 30 5 40 Damage Taken 1662 | 43 715 108 796 Core 549 | . 120 25 404 Absorbed by Shields . | . . . . Core Remaining (%) 71 | 100 . 42 . Volleys Fired 57 | 5 46 6 . Largest 2 | 2 2 2 . Hottest 90 | 90 90 90 . Shots Fired 107 | 10 86 11 . Gun 100 | 10 79 11 . Cannon . | . . . . Launcher 7 | . 7 . . Special . | . . . . Kinetic . | . . . . Thermal 100 | 10 79 11 . Explosive 7 | . 7 . . Electromagnetic . | . . . . Robot Hit Streak 9 | 5 9 7 . Robot Miss Streak 2 | 1 2 1 . Penetration Max . | . . . . Secondary Targets . | . . . . Shots Hit Robots 72 | 8 55 9 . Core Hits 29 | 2 26 1 . Critical Kills . | . . . . Critical Parts Destroyed . | . . . . Critical Strikes 5 | . 4 1 . Burn 5 | . 4 1 . Melee Attacks . | . . . . Impact . | . . . . Slashing . | . . . . Piercing . | . . . . Sneak Attacks . | . . . . Combat Hostiles . | . . . . Follow-up Attacks . | . . . . Damage Inflicted 1272 | 94 1068 108 2 Guns 827 | 94 628 105 . Cannons . | . . . . Explosions 431 | . 431 . . Melee . | . . . . Ramming 14 | . 9 3 2 Kinetic . | . . . . Thermal 827 | 94 628 105 . Explosive 431 | . 431 . . Electromagnetic . | . . . . Impact . | . . . . Slashing . | . . . . Piercing . | . . . . Highest Corruption 1 | . 1 1 . Average Corruption 1 | . 1 1 . Corruption Purged . | . . . . Corruption Blocked . | . . . . Effects 4 | . 3 1 . Message Errors 2 | . 1 1 . Matter Fused 1 | . 1 . . Data Loss (minor) 1 | . 1 . . Overload Shots . | . . . . Overflow Damage 29 | . 29 . . Projectiles . | . . . . Explosions 29 | . 29 . . Melee . | . . . . Knockbacks . | . . . . Impact . | . . . . Kinetic . | . . . . Secondary . | . . . . Self-Inflicted Damage 38 | . 38 . . Shots 1 | . 1 . . Rammed . | . . . . Targets Rammed 4 | . 1 1 2 Kicked 4 | . 1 1 2 Crushed . | . . . . Highest Temperature 345 | 174 345 93 5 Average Temperature 102 | 88 115 47 3 Received Heat Transfer 828 | 24 309 60 435 Effects 2 | . 2 . . Interference 2 | . 2 . . Siege Activations . | . . . . Robots Corrupted . | . . . . Combat Hostiles . | . . . . Parts Fried . | . . . . Impact Corruptions . | . . . . Robots Melted 1 | . . 1 . Combat Hostiles 1 | . . 1 . Parts Melted 8 | 2 4 2 . Heat Transferred 2552 | 236 1969 347 . Parts Sabotaged . | . . . . Parts Stolen . | . . . . Parts Stripped . | . . . . Power Chain Reactions . | . . . . Alert | -11 -10 -10 -9 ------- Run | Yrd Mat Min Mat Peak Influence 315 | 20 315 111 85 Initial 66 | . 13 66 35 Average 113 | 3 141 75 56 Maximum Alert Level 1 | . 1 . . Low Security (%) 86 | 100 79 100 100 Level 1 13 | . 20 . . Level 2 . | . . . . Level 3 . | . . . . Level 4 . | . . . . Level 5 . | . . . . High Security . | . . . . Max Security . | . . . . Squads Dispatched 4 | . 3 . 1 Investigation 1 | . 1 . . Extermination . | . . . . Reinforcement 3 | . 2 . 1 Assault . | . . . . Garrison . | . . . . Intercept . | . . . . Searches Triggered . | . . . . Construction Impeded . | . . . . Haulers Reinforced . | . . . . Active Scanning Responses . | . . . . Cargo Convoy Interrupts . | . . . . Stealth | -11 -10 -10 -9 --------- Run | Yrd Mat Min Mat Distress Signals . | . . . . Communications Jammed . | . . . . Distress Signals . | . . . . Times Spotted 36 | 1 21 3 11 Peak Tracking Total 8 | 1 6 2 8 Tactical Retreats 5 | . 2 1 2 Traps | -11 -10 -10 -9 ------- Run | Yrd Mat Min Mat Traps Triggered 2 | . 2 . . Indirectly . | . . . . Trap Hack Attempts . | . . . . Triggered . | . . . . Disarmed . | . . . . Reprogrammed . | . . . . Reused . | . . . . Traps Extracted . | . . . . Installed . | . . . . Triggered . | . . . . Machines | -11 -10 -10 -9 ---------- Run | Yrd Mat Min Mat Machines Disabled . | . . . . Max in Single Turn . | . . . . Machines Repaired . | . . . . Machines Dismantled . | . . . . Machines Sabotaged . | . . . . Overloaded Fab Kills . | . . . . Hacking | -11 -10 -10 -9 --------- Run | Yrd Mat Min Mat Machines Accessed 6 | . 5 . 1 Terminals 4 | . 3 . 1 Fabricators . | . . . . Repair Stations 1 | . 1 . . Recycling Units 1 | . 1 . . Scanalyzers . | . . . . Garrison Access . | . . . . Total Hacks 13 | . 11 . 2 Successful 7 | . 5 . 2 Failed 6 | . 6 . . Catastrophic . | . . . . Database Lockouts . | . . . . Manual . | . . . . Terminals 9 | . 7 . 2 Fabricators . | . . . . Repair Stations 3 | . 3 . . Recycling Units 1 | . 1 . . Scanalyzers . | . . . . Garrison Access . | . . . . Terminal Hacks 4 | . 2 . 2 Record 2 | . 1 . 1 Robot Analysis 1 | . 1 . . Hauler Manifests 1 | . . . 1 Fabricator Hacks . | . . . . Repair Station Hacks 2 | . 2 . . Scan Component 1 | . 1 . . Refit 1 | . 1 . . Recycling Unit Hacks 1 | . 1 . . Retrieve Components 1 | . 1 . . Scanalyzer . | . . . . Garrison Access Hacks . | . . . . Unauthorized Hacks . | . . . . Terminals . | . . . . Fabricators . | . . . . Repair Stations . | . . . . Recycling Units . | . . . . Scanalyzers . | . . . . Garrison Access . | . . . . Data Cores Recovered . | . . . . Used . | . . . . Hacking Detections 5 | . 4 . 1 Full Trace Events 1 | . 1 . . Feedback Events . | . . . . Feedback Blocked . | . . . . Robot Schematics Acquired . | . . . . Robots Built . | . . . . Authchips . | . . . . Time . | . . . . Total Robot Build Rating . | . . . . Part Schematics Acquired . | . . . . Parts Built . | . . . . Authchips . | . . . . Time . | . . . . Total Part Build Rating . | . . . . Parts Repaired . | . . . . Time . | . . . . Parts Recycled . | . . . . Recycled Matter . | . . . . Retrieved Matter . | . . . . Retrieved Components . | . . . . Parts Scanalyzed . | . . . . Part Schematics Acquired . | . . . . Parts Damaged . | . . . . Bothacking | -11 -10 -10 -9 ------------ Run | Yrd Mat Min Mat Used RIF Installer . | . . . . Robots Hacked . | . . . . Non-combat . | . . . . Combat . | . . . . Robot Hacks Applied . | . . . . Relay Couplers Released . | . . . . Fabnet Peak Effective % . | . . . . Robots Rewired . | . . . . Allies Hacked . | . . . . Hacks Repelled . | . . . . Allies | -11 -10 -10 -9 -------- Run | Yrd Mat Min Mat Total Allies . | . . . . Largest Group . | . . . . Highest-Rated Group . | . . . . Highest-Rated Ally . | . . . . Total Orders . | . . . . Ally Attacks . | . . . . Total Damage . | . . . . Kills . | . . . . Allies Corrupted . | . . . . Allies Melted . | . . . . Intel | -11 -10 -10 -9 ------- Run | Yrd Mat Min Mat Robot Analysis Total 1 | . 1 . . Derelict Logs Recovered 1 | . . 1 . Drone Launches . | . . . . Drone Recoveries . | . . . . Exploration | -11 -10 -10 -9 ------------- Run | Yrd Mat Min Mat Turns Passed 1576 | 92 1074 221 189 Spaces Moved 1099 | 70 722 169 138 Core 41 | 19 . . 22 Treads . | . . . . Legs 1058 | 51 722 169 116 Wheels . | . . . . Hover . | . . . . Flight . | . . . . Fastest Speed 50 | 50 120 120 120 Average Speed 120 | 101 120 120 132 Slowest Speed 200 | 120 120 120 200 Overloaded Moves . | . . . . Propulsion Burnouts . | . . . . Robots Hopped . | . . . . Cave-ins Triggered . | . . . . Exploration Rate (%) 36 | 6 85 38 17 Regions Visited 3 Branch Regions 1 Pre-discovered Areas 1 | . . 1 . Known Exits Taken . | . . . . Unknown Exits Taken 3 | 1 1 1 . Scrap Searched 1 | . . 1 . Spaces Dug . | . . . . Terrain Destroyed 33 | . 33 . . Melee . | . . . . Projectile . | . . . . AOE 33 | . 33 . . Terrain Rammed . | . . . . Walls Destroyed . | . . . . Machines Disabled . | . . . . Actions | -11 -10 -10 -9 --------- Run | Yrd Mat Min Mat Total 1240 | 79 841 176 144 Wait 50 | . 50 . . Move 1096 | 69 721 168 138 Hop . | . . . . Pick Up 12 | . 10 1 1 Fast Attach 8 | 5 3 . . Attach 7 | . 4 . 3 Detach . | . . . . Swap 4 | . 4 . . Drop 2 | . 2 . . Fire 57 | 5 46 6 . Melee . | . . . . Ram . | . . . . Kick 4 | . 1 1 2 Crush . | . . . . Escape Stasis . | . . . . Rewire . | . . . . Trap . | . . . . Miscellaneous . | . . . . Route ------- -11/Scrapyard -10/Materials (discovered 3 exits: *Mat x2 / [*Min]) -10/Mines -9/Materials History --------- Turn | Location | Event 2 | -11/Scrapyard | Met Revision 17 59 | -11/Scrapyard | Discovered new exit (range 8) 93 | -11/Scrapyard | Entered Materials 313 | -10/Materials | Build established: Mutant 533 | -10/Materials | Lost 3 parts (1p1n1u) 563 | -10/Materials | Discovered new exit (range 7) 705 | -10/Materials | Discovered new exit (range 14) 891 | -10/Materials | Discovered new exit (range 7) 1167 | -10/Materials | Entered Mines 1245 | -10/Mines | Found a damaged Exp. Sensor Array with a note attached 1248 | -10/Mines | Found Prototype Device 1272 | -10/Mines | Discovered new exit (range 7) 1319 | -10/Mines | Core integrity fell below 50% 1388 | -10/Mines | Entered Materials 1388 | -9/Materials | Evolved 2 slots: Propulsion x2 1543 | -9/Materials | Core integrity fell below 50% 1558 | -9/Materials | Core integrity fell below 20% 1564 | -9/Materials | Lost 4 parts (1p3n) 1577 | -9/Materials | Destroyed by G-34 Mercenary with Small Laser Last Messages --------------- 6x Lrg. Storage Unit A-02 Transporter 2x Adv. Beam Cannon 4x Hvy. Ion Engine A-02 Transporter 5x Rocket Launcher Aluminum Leg destroyed. Acquired ECM Suite. Critical hit (Burn: +37). Aluminum Leg destroyed. Kicked Y-45 Defender. Kicked Y-45 Defender out of the way. Backup Power I destroyed. ALERT: Hostiles spotted, dispatching reinforcements to Terminal M004. Critical hit (Burn: +37). K-01 Serf cleans the Neutrino Reactor. Aluminum Leg destroyed. Targeting Computer destroyed. [Achievement: First Step to Greatness] Map ----- +----------------------------------------------------+ | | | ?????????????????????????????????????????????????? | | ?????????????????????????????????????????????????? | | ?????????????????????????????????????????????????? | | ?????????????????????????????????????????????????? | | ?????????????????????????????????????????????????? | | ?????????????????????????????????????????????????? | | ?????????????????????????????????????????????????? | | ?????????????????????????????????????????????????? | | ?????????????????????????????????????????????????? | | ?????????????????????????????????????????????????? | | ?????????????????????????????????????????????????? | | ???????????????????######????????????????????????? | | ???????????????????# #????????????????????????? | | ???????????????????# #?#####??????????????????? | | ???????????????????# #?# #??????????????????? | | ???????????????????# #?# #??????????????????? | | ???????????????????# #?# #??????????????????? | | ???????????????????# #?# #??????????????????? | | ???????????????????# #?# #??????????????????? | | ???????????????????# #?# #??????????????????? | | ?????????????####### ### ##?????????????????? | | ??????######## ###+### #?????????????????? | | ??????# Y #?????????????????? | | ??????# gg T #?????????????????? | | ??????# g @ #?????????????????? | | ####### #### ####### #?????????????????? | | # #??## ##???#####+#####???????????????? | | """ # #???# #????# #???????????????? | | """ " #???# #????# #???????????????? | | """ # #???# #????# #???????????????? | | # #???# #????# #???????????????? | | # #???# #????# #???????????????? | | ###+### #???# #????# #???????????????? | | # #??? ????# #???????????????? | | " """ # #??? ????# #???????????????? | | " """ + #?# ########/#####???????????????? | | " """ # #?? T #???????????????????? | | # #?# ###### #???????????????????? | | # #??? ? ??????# #???????????????????? | | # #??????????????# ##########+#????????? | | # #???????######## ??????? | | ####### #???????# # ??????? | | ??????# #?####### T + ??????? | | ??????# #?# # # ??????? | | ??????# #?# # # ???????? | | ????### ### """ # # ???????? | | ### # """ # # ???????? | | # """ ######## ???????? | | ### # ######## #########/#????????? | +----------------------------------------------------+ Best States ------------- Heat Dissipation 39 Energy Generation 10 Energy Capacity 250 Matter Stores 300 Matter Capacity 300 Sight Range 16 Terrain Scan Density 10 Armor Coverage 150 Evasion (%) 55 Targeting Accuracy 5 Item Schematics ----------------- None Robot Schematics ------------------ None Fabricated ------------ Nothing Alien Tech Used ----------------- None Achievements -------------- First Step to Greatness It's Just You Let's See Who's Tougher Shopping List Uninvited Guest Challenges ------------ None Game ------ Seed MatterSpectralDrive Manual? 0 Play Time 00:31:20 Cumulative 0.8 hours Start 2024.04.02 @ 17:51:00 End 2024.04.02 @ 18:20:13 Sessions 1 Manual Loads 0 Difficulty Rogue Special Mode None Game No. 2 Rogue 2 Adventurer 0 Explorer 0 Win Type - Total 0 Types 0/0/0/0/0/0/0/0/0 Lore% 0 Gallery% 1 Achievement% 2 Wizard Run 0 Options --------- Layout 1 ASCII 0 Keyboard 0 Movement Arrows Keybinds 0 Fullscreen 1 Font 24/Smallcaps Map View 50x35 Zoom Use 0% Tactical HUD 0 Map Filters NONE Filters NONE Steam 1 RUN: 603b8209-9c82-47de-98b7-5df1b57ef65c